[Event "Maria Albulet Memorial 2018"]
[Site "Braila"]
[Date "2018.11.08"]
[Round "7"]
[White "Bucur, Denisa-Andreea"]
[Black "Ciolacu, Alessia-Mihaela"]
[Result "1-0"]
[ECO "D37"]
[WhiteElo "2012"]
[BlackElo "1972"]
[Annotator "NA RC"]
[PlyCount "81"]
[EventDate "2018.11.03"]
[EventType "swiss"]
[EventCountry "ROU"]
[SourceTitle "playchess.com"]
[Source "ChessBase"]
[SourceQuality "1"]
[TimeControl "40/5400+30:900+30"]

{[%evp 8,81,33,22,22,20,17,11,8,14,10,3,-2,-3,66,48,50,49,47,38,47,35,47,37,66,38,51,18,32767,18,312,32767,32767,386,342,408,388,420,1745,29981,29989,1685,1391,2490,2040,948,926,356,365,332,306,331,355,382,386,407,481,481,920,1167,1216,1629,32767,32767,32767,32767,32767,32767,32767,32767,32767,32767,29993,29990,29990,1212]} 1. d4 {[%emt 0:00:00]} Nf6 {[%emt 0:00:00]} 2. Nf3 {[%emt 0:00:00]} d5 {[%emt 0:00:00]} 3. c4 {[%emt 0:00:00]} e6 {[%emt 0:00:00]} 4. Nc3 {[%emt 0:00:00]} Be7 {[%emt 0:00:10]} 5. Bf4 {[%emt 0:00:18]} O-O {[%emt 0:00:16]} 6. e3 {[%emt 0:00:18]} Nbd7 {[%emt 0:00:14]} 7. cxd5 {[%emt 0:00:25]} Nxd5 {[%emt 0:00:33]} 8. Nxd5 {[%emt 0:00:36] D37: Queen's Gambit Declined: 5 Bf4} exd5 {[%emt 0:00:09]} 9. Bd3 {[%emt 0:00:30] LiveBook: 93 Games} c5 {[%emt 0:01:53]} 10. O-O {[%emt 0:03:45]} (10. dxc5 Nxc5 11. O-O Bg4 12. Be2 Bf6 13. h3 Bh5 14. Nd4 Bxe2 15. Qxe2 Bxd4 16. exd4 {½-½ (62) Li,C (2725)-Yu,Y (2759) Ningbo 2018}) 10... Nf6 {[%emt 0:21:47]} ({Better is} 10... c4 $11 11. Bc2 b5) 11. dxc5 {[%emt 0:04:40]} Bxc5 {[%emt 0:00:06]} 12. Rc1 {[%emt 0:02:26]} Bb6 $146 {[%emt 0:01:34]} ({Predecessor:} 12... Bd6 13. Qa4 Bd7 14. Qd4 Bxf4 15. Qxf4 Rc8 16. Rxc8 Qxc8 {1-0 (32) Bagaturov,G (2410)-Fox,A (1986) Marianske Lazne 2016}) 13. h3 {[%emt 0:04:08]} Be6 {[%emt 0:01:48]} 14. Bb1 {[%emt 0:04:21]} Rc8 {[%emt 0:02:10]} 15. Qd3 {[%emt 0:03:18]} Rxc1 {[%emt 0:08:39]} 16. Rxc1 {[%emt 0:00:57]} Ne4 {[%emt 0:00:09]} 17. Nd4 {[%emt 0:31:23]} Qh4 {[%emt 0:07:32]} 18. f3 {[%emt 0:09:31]} Qf2+ $2 {[%emt 0:10:17]} (18... Bxd4 $11 19. Qxd4 Qf2+ 20. Kh1 (20. Kh2 Nd2 $11) 20... Ng3+ 21. Bxg3 Qxg3) 19. Kh2 Bxh3 {[%emt 0:40:44]} 20. Kxh3 {[%emt 0:13:52]} g5 {[%emt 0:02:10]} 21. Nf5 {[%emt 0:01:07]} gxf4 {[%emt 0:06:36]} 22. fxe4 {[%emt 0:01:14]} fxe3 $2 {[%emt 0:01:07]} (22... f3 23. Qc2 Qxc2 24. Bxc2 dxe4 25. Bxe4 fxg2 26. Bxb7 Rd8 27. Bxg2 Kf8) 23. exd5 {[%emt 0:03:27]} Rd8 {[%emt 0:00:49]} 24. Nh6+ {[%emt 0:02:21]} (24. Qc3 $142 Qxf5+ 25. Bxf5 Rxd5 26. Qf6 Bc5 27. Be4 Rd6 28. Qg5+ Rg6 29. Bxg6) 24... Kf8 {[%emt 0:00:46]} 25. Rf1 {[%emt 0:00:28]} Rxd5 {[%emt 0:01:26]} 26. Rxf2 {[%emt 0:01:39]} exf2 {[%emt 0:00:15]} 27. Qf3 $2 {[%emt 0:01:58]} (27. Qxd5 {[%csl Gh6][%cal Rd5f7]} f1=Q 28. Qd6+ Ke8 29. Qb8+ Bd8 30. Qe5+ Kf8 31. Nf5 Qh1+ 32. Kg3 Bh4+ 33. Nxh4 Qxb1 34. Nf5 Qd3+ 35. Kh2 Qxf5 36. Qxf5) 27... Rh5+ {[%emt 0:00:23]} 28. Kg3 {[%emt 0:02:33]} Rxh6 {[%emt 0:00:06]} 29. Bd3 {[%emt 0:00:55]} Re6 {[%emt 0:00:14]} 30. Kg4 {[%emt 0:01:27]} Re3 {[%emt 0:01:24]} 31. Qf5 {[%emt 0:00:41]} h5+ {[%emt 0:00:57]} 32. Kxh5 {[%emt 0:01:17]} Rg3 {[%emt 0:00:33]} (32... Re6 $142 33. Bc4 Re7) 33. Bc4 {[%emt 0:01:05]} Rg7 {[%emt 0:00:10]} 34. Qc8+ {[%emt 0:00:42]} Ke7 {[%emt 0:00:12]} 35. Qxb7+ {[%emt 0:00:32]} Kf8 {[%emt 0:00:09]} 36. Qb8+ {[%emt 0:00:52]} Ke7 {[%emt 0:00:07]} 37. Qe5+ {[%emt 0:00:22]} Kf8 {[%emt 0:00:07]} 38. Qd6+ {[%emt 0:01:45]} Kg8 {[%emt 0:00:17]} 39. Qb8+ {[%emt 0:00:14]} Kh7 {[%emt 0:00:19]} 40. Bd3+ {[%emt 0:00:00]} Rg6 {[%emt 0:00:00]} 41. Qf4 $18 {[%emt 0:01:17]} (41. Qf8 $142 f1=Q 42. Bxf1 Bc5 43. Qxf7+ Rg7 44. Bd3+ Kh8 45. Qe8+ Rg8 46. Qe5+ Rg7 47. Qxc5) 1-0

[Event "Maria Albulet Memorial 2018"]
[Site "Braila"]
[Date "2018.11.08"]
[Round "7"]
[White "Didiliuc, Dariana-Gabriela"]
[Black "Maria, Lia-Alexandra"]
[Result "1-0"]
[ECO "B43"]
[WhiteElo "1784"]
[BlackElo "1479"]
[Annotator "NA RC"]
[PlyCount "89"]
[EventDate "2018.11.03"]
[EventType "swiss"]
[EventCountry "ROU"]
[SourceTitle "playchess.com"]
[Source "ChessBase"]
[SourceQuality "1"]
[TimeControl "40/5400+30:900+30"]

1. e4 {[%emt 0:00:00]} c5 {[%emt 0:00:00]} 2. Nf3 {[%emt 0:00:00]} e6 {[%emt 0:00:00]} 3. d4 {[%emt 0:00:11]} cxd4 {[%emt 0:00:00]} 4. Nxd4 {[%emt 0:00:10]} a6 {[%emt 0:00:00]} 5. Nc3 {[%emt 0:00:24]} Qc7 {[%emt 0:00:18]} 6. Bd3 {[%emt 0:00:28]} Nf6 {[%emt 0:00:14]} 7. O-O {[%emt 0:00:52]} d6 {[%emt 0:00:03]} 8. f4 {[%emt 0:00:17]} Nbd7 {[%emt 0:00:06]} 9. Kh1 {[%emt 0:00:22]} Be7 {[%emt 0:00:12]} 10. Qe2 {[%emt 0:00:36]} O-O {[%emt 0:00:40]} 11. Bd2 {[%emt 0:00:41]} b5 {[%emt 0:00:24]} 12. b4 {[%emt 0:00:22]} Bb7 {[%emt 0:00:46]} 13. a4 {[%emt 0:00:51]} bxa4 {[%emt 0:00:25]} 14. Rxa4 {[%emt 0:00:57]} a5 {[%emt 0:01:36]} 15. bxa5 {[%emt 0:04:26]} Nc5 {[%emt 0:01:34]} 16. Ra2 {[%emt 0:01:37]} Nxd3 {[%emt 0:00:25]} 17. cxd3 {[%emt 0:00:12]} Ra6 {[%emt 0:02:41]} 18. Ncb5 {[%emt 0:03:38]} Qd7 {[%emt 0:00:51]} 19. Rc1 {[%emt 0:07:30]} Rc8 {[%emt 0:01:13]} 20. Rxc8+ {[%emt 0:05:32]} Bxc8 {[%emt 0:01:28]} 21. Rc2 {[%emt 0:00:46]} Bd8 {[%emt 0:00:44]} 22. Nb3 {[%emt 0:21:59]} Bb7 {[%emt 0:01:17]} 23. N5d4 {[%emt 0:05:06]} h6 {[%emt 0:01:00]} 24. e5 {[%emt 0:00:32]} Nd5 {[%emt 0:02:48]} 25. exd6 {[%emt 0:11:12]} Qxd6 {[%emt 0:01:22]} 26. Nc5 {[%emt 0:02:32]} Ra7 {[%emt 0:01:40]} 27. Nb5 {[%emt 0:00:15]} Qb8 {[%emt 0:00:54]} 28. Nxa7 {[%emt 0:03:24]} Qxa7 {[%emt 0:00:30]} 29. Nxb7 {[%emt 0:00:30]} Qxb7 {[%emt 0:00:30]} 30. Rc1 {[%emt 0:00:30]} Kh7 {[%emt 0:00:30]} 31. Qe4+ {[%emt 0:00:30]} g6 {[%emt 0:01:45]} 32. Qc4 {[%emt 0:01:29]} Qb2 {[%emt 0:01:48]} 33. Qc2 {[%emt 0:04:18]} Qa3 {[%emt 0:02:15]} 34. Qc5 {[%emt 0:01:11]} Qxd3 {[%emt 0:04:07]} 35. Qf2 {[%emt 0:01:10]} Qa6 {[%emt 0:00:43]} 36. Qf1 {[%emt 0:01:40]} Qa7 {[%emt 0:00:48]} 37. a6 {[%emt 0:01:16]} Bb6 {[%emt 0:01:41]} 38. Rb1 {[%emt 0:00:31]} Nc7 {[%emt 0:04:11]} 39. Qd3 {[%emt 0:00:26]} Nd5 {[%emt 0:00:43]} 40. Qb5 {[%emt 0:00:00]} Qc7 {[%emt 0:00:00]} 41. Rc1 {[%emt 0:02:16]} Qd8 {[%emt 0:02:59]} 42. Qc6 {[%emt 0:00:50]} Qb8 {[%emt 0:01:40]} 43. Qb7 {[%emt 0:00:40]} Qa7 {[%emt 0:01:42]} 44. Rc8 {[%emt 0:01:14]} Be3 {[%emt 0:00:38]} 45. Bxe3 {[%emt 0:00:11]} 1-0

[Event "Maria Albulet Memorial 2018"]
[Site "Braila"]
[Date "2018.11.08"]
[Round "7"]
[White "Otetea, Ioana"]
[Black "Nistor, Valentina"]
[Result "0-1"]
[ECO "C26"]
[WhiteElo "1602"]
[BlackElo "1881"]
[Annotator "NA RC"]
[PlyCount "96"]
[EventDate "2018.11.03"]
[EventType "swiss"]
[EventCountry "ROU"]
[SourceTitle "playchess.com"]
[Source "ChessBase"]
[SourceQuality "1"]
[TimeControl "40/5400+30:900+30"]

{[%evp 8,88,24,29,19,29,37,30,35,-57,-65,-84,-39,-100,32767,-188,-180,-197,-143,-164,-143,-178,-126,-125,-133,32767,-125,-156,-143,32767,-139,-152,-154,32767,32767,32767,-181,-186,-128,-110,-61,-69,0,-62,-19,32767,-140,-158,-139,-192,-204,-211,-139,-193,-196,-248,-223,-228,-264,-288,-177,-186,-183,-356,-309,-333,-270,-264,-289,-377,-316,-372,-422,-500,-449,-543,-469,-415,-508,-506,-467,-1231,-1333]} 1. e4 {[%emt 0:00:00]} e5 {[%emt 0:00:00]} 2. Nc3 {[%emt 0:00:00]} Nf6 {[%emt 0:00:00]} 3. g3 {[%emt 0:00:00]} Nc6 {[%emt 0:00:20]} 4. Bg2 {[%emt 0:00:26]} Bb4 {[%emt 0:01:31]} 5. Nge2 {[%emt 0:00:22]} O-O {[%emt 0:00:52]} 6. O-O {[%emt 0:01:35] LiveBook: 4 Games} d6 {[%emt 0:02:49]} 7. d3 {[%emt 0:01:49]} h6 {[%emt 0:01:26]} 8. f4 {[%emt 0:02:34]} (8. a3 $14 Bc5 9. Be3) 8... Bc5+ {[%emt 0:04:42]} 9. Kh1 {[%emt 0:01:56]} Ng4 {[%emt 0:00:59]} 10. Qe1 {[%emt 0:10:50]} ({Günstiger ist} 10. fxe5 $15 dxe5 11. Qe1) 10... Nb4 {[%emt 0:02:00]} 11. Rb1 {[%emt 0:01:08]} (11. Qd1 $17) 11... Nxc2 {[%emt 0:00:58]} 12. Qd2 {[%emt 0:00:53]} Nce3 {[%emt 0:01:49]} 13. Rf3 {[%emt 0:01:52]} Nxg2 {[%emt 0:01:43]} 14. Kxg2 {[%emt 0:00:06]} c6 {[%emt 0:05:45]} 15. h3 {[%emt 0:02:30]} Nf6 {[%emt 0:01:49]} 16. b4 {[%emt 0:03:42]} Bb6 {[%emt 0:01:00]} 17. Qc2 {[%emt 0:05:26]} Qe7 {[%emt 0:05:32]} 18. f5 {[%emt 0:04:09]} Rd8 {[%emt 0:08:03]} 19. a3 {[%emt 0:03:16]} d5 {[%emt 0:01:59]} 20. Na4 {[%emt 0:03:04]} Bc7 {[%emt 0:00:30]} 21. Be3 {[%emt 0:03:40]} Bd6 {[%emt 0:03:03]} 22. g4 {[%emt 0:04:27]} Nh7 {[%emt 0:03:00]} (22... Qd7 $19 23. Bb6 Re8) 23. Rh1 {[%emt 0:08:41]} Bd7 {[%emt 0:04:09]} 24. h4 {[%emt 0:06:06] [#]} f6 {[%emt 0:02:58]} (24... c5 $1 $17 {[%mdl 512]} 25. Nac3 (25. Nxc5 d4) 25... d4 26. bxc5 Bxc5) 25. Rfh3 {[%emt 0:05:40]} Be8 {[%emt 0:06:30]} 26. Ng3 {[%emt 0:05:07]} b6 {[%emt 0:04:56]} 27. Rc1 {[%emt 0:07:19]} (27. Ne2 $142) 27... Rac8 {[%emt 0:02:38]} 28. Qb3 {[%emt 0:03:38]} (28. Rb1 $17) 28... Bf7 {[%emt 0:00:32]} 29. Qc2 {[%emt 0:01:13]} Rc7 {[%emt 0:04:11]} 30. Qf2 {[%emt 0:02:37]} Rdc8 {[%emt 0:04:17]} 31. Qf3 {[%emt 0:00:56]} (31. Bc5 $142) 31... d4 {[%emt 0:04:25]} 32. Bd2 {[%emt 0:00:17]} c5 {[%emt 0:00:37]} 33. bxc5 {[%emt 0:01:08]} bxc5 {[%emt 0:00:38]} 34. Nb2 {[%emt 0:00:16]} c4 {[%emt 0:03:44]} 35. dxc4 $2 {[%emt 0:00:44]} (35. Nxc4 Bxa3 36. Rc2) 35... Bxa3 {[%emt 0:00:53]} 36. Rc2 {[%emt 0:00:47]} Bxb2 {[%emt 0:00:30]} ({Stronger than} 36... Bxc4 37. Nxc4 (37. Rxc4 Rxc4 38. Nxc4 Rxc4 $19) 37... Rxc4 38. Qb3 $14) 37. Rxb2 {[%emt 0:00:05]} Rxc4 {[%emt 0:00:21]} 38. Nf1 {[%emt 0:01:48]} Qc5 {[%emt 0:01:48]} 39. Qe2 {[%emt 0:02:06]} a5 {[%emt 0:00:40]} 40. Ra2 {[%emt 0:00:00]} a4 {[%emt 0:00:00]} 41. Rha3 {[%emt 0:01:57]} Qc6 {[%emt 0:02:43]} 42. Ra1 {[%emt 0:02:51]} Rb8 {[%emt 0:02:50]} 43. Qd3 {[%emt 0:01:53]} Rb2 {[%emt 0:01:51]} 44. Kf3 {[%emt 0:01:06]} (44. Kg1 $142) 44... Rcc2 $19 {[%emt 0:03:19]} 45. Kf2 {[%emt 0:04:55]} Bc4 {[%emt 0:00:30]} 46. Qf3 {[%emt 0:00:36]} Bxf1 {[%emt 0:00:22]} 47. Kxf1 {[%emt 0:00:14]} Rxd2 {[%emt 0:00:07]} 48. Rxa4 {[%emt 0:00:27]} Qxa4 {[%emt 0:00:31]} 0-1